fUST/lending_fUST_20241204
["ID","MTS","AMOUNT","RATE_DAILY","PERIOD"]
[344135802,1733291438352,-1739.28,0.000301,2]
[344135803,1733291438361,-500.0,0.00030134,2]
[344135806,1733291438371,-500.0,0.00030134,2]
[344135808,1733291438381,-500.0,0.00030134,2]
[344135810,1733291438390,-500.0,0.00030134,2]
[344135812,1733291438399,-500.0,0.00030134,2]
[344135814,1733291438409,-500.0,0.00030134,2]
[344135816,1733291438418,-505.84009646,0.00030134,2]
[344135817,1733291438427,-173.658,0.00030135,25]
[344135819,1733291438437,-268.93337211,0.00030135,2]
[344135821,1733291438446,-151.0,0.00030136,7]
[344135824,1733291438456,-163.994481,0.00030136,7]
[344135826,1733291438466,-500.0,0.00030136,7]
[344135827,1733291438475,-500.0,0.00030136,7]
[344135830,1733291438484,-202.5372,0.00030136,7]
[344135833,1733291438494,-500.0,0.00030136,7]
[344135837,1733291438503,-602.585056,0.00030136,7]
[344135839,1733291438512,-602.585056,0.00030136,7]
[344135842,1733291438522,-602.585056,0.00030136,7]
[344135845,1733291438531,-602.585056,0.00030136,7]
[344135848,1733291438540,-602.585056,0.00030136,7]
[344135850,1733291438549,-602.585056,0.00030136,7]
[344135851,1733291438558,-602.585056,0.00030136,7]
[344135853,1733291438567,-602.585056,0.00030136,7]
[344135856,1733291438576,-602.585056,0.00030136,7]
[344135857,1733291438586,-602.585056,0.00030136,7]
[344135859,1733291438596,-602.585056,0.00030136,7]
[344135862,1733291438606,-602.585056,0.00030136,7]
[344135864,1733291438616,-602.585056,0.00030136,7]
[344135865,1733291438627,-602.585056,0.00030136,7]
[344135868,1733291438637,-602.585056,0.00030136,7]
[344135870,1733291438647,-602.585056,0.00030136,7]
[344135872,1733291438656,-602.585056,0.00030136,7]
[344135874,1733291438667,-602.585056,0.00030136,7]
[344135876,1733291438677,-602.585056,0.00030136,7]
[344135877,1733291438689,-602.585051,0.00030136,7]
[344135879,1733291438699,-1249.16,0.00030136,7]
[344135881,1733291438711,-1249.16,0.00030136,7]
[344135883,1733291438721,-1249.16,0.00030136,7]
[344135885,1733291438730,-1249.16,0.00030136,7]
[344135887,1733291438740,-1249.16,0.00030136,7]
[344135889,1733291438749,-1249.16,0.00030136,7]
[344135890,1733291438758,-1249.16,0.00030136,7]
[344135891,1733291438768,-1249.16,0.00030136,7]
[344135892,1733291438778,-1249.16,0.00030136,7]
[344135893,1733291438788,-1249.16,0.00030136,7]
[344135894,1733291438801,-1249.16,0.00030136,7]
[344135895,1733291438815,-528.8,0.00030136,7]
[344135896,1733291438829,-550.87598257,0.00030136,7]
[344135897,1733291438841,-1249.16,0.00030155,7]
[344135898,1733291438863,-2668.02605065,0.00030192,2]
[344135899,1733291438875,-183.098344,0.00030255,2]
[344135900,1733291438888,-1178.27291001,0.00030318,7]
[344136243,1733291443289,-70.88708999,0.00030318,7]
[344136245,1733291443299,-244.719,0.00030337,2]
[344136247,1733291443308,-532.0,0.00030337,2]
[344136249,1733291443318,-2376.0,0.00030337,2]
[344136251,1733291443327,-2172.0,0.00030337,2]
[344136253,1733291443336,-150.195,0.00030337,2]
[344136255,1733291443346,-2668.02605065,0.00030348,2]
[344136257,1733291443355,-215.0,0.00030411,2]
[344136259,1733291443365,-420.0,0.00030466,2]
[344136261,1733291443374,-2668.02605065,0.00030504,2]
[344136263,1733291443383,-161.03567353,0.00030532,2]
[344136265,1733291443393,-5845.008,0.00030646,2]
[344136267,1733291443402,-2668.02605065,0.0003066,2]
[344136269,1733291443411,-10113.9376664,0.00030667,2]
[344136271,1733291443421,-2668.02605065,0.00030816,2]
[344136273,1733291443430,-1249.16,0.00030819,7]
[344136275,1733291443440,-3377.85336436,0.00030824,2]
[344137749,1733291475280,207.5272909,0.00030384,30]
[344137757,1733291715841,174.265107,0.00013973,2]
[344137769,1733291851584,153.32,0.000303,31]
[344137770,1733291851635,153.32,0.000303,31]
[344137771,1733291851702,153.32,0.000303,31]
[344137772,1733291851762,153.32,0.000303,31]
[344137773,1733291851818,153.32,0.000303,31]
[344137774,1733291851882,153.32,0.000303,31]
[344137775,1733291851939,153.32,0.000303,31]
[344137776,1733291893261,3705.337695,0.0003,30]
[344137782,1733292051883,878.0,0.00031195,30]
[344137790,1733292418862,481.51414047,0.00030099,31]
[344137791,1733292425114,-300.0,0.00027119,2]
[344137792,1733292425138,-300.0,0.00027119,2]
[344137793,1733292425161,-1133.94419616,0.0002712,2]
[344137794,1733292434145,-307.09389709,0.0002712,2]
[344137795,1733292441093,-1123.14736762,0.0002712,2]
[344137796,1733292446107,-7895.68426359,0.0002712,2]
[344137797,1733292447114,-2538.29965784,0.0002712,2]
[344137798,1733292448147,172.931271,0.00013973,2]
[344137799,1733292459323,153.33,0.000303,31]
[344137800,1733292459379,153.33,0.000303,31]
[344137801,1733292459450,153.33,0.000303,31]
[344137802,1733292459506,153.33,0.000303,31]
[344137803,1733292459563,153.33,0.000303,31]
[344137804,1733292459618,153.33,0.000303,31]
[344137806,1733292516555,16313.04770903,0.000307,30]
[344137809,1733292546115,-300.0,0.00027119,2]
[344137810,1733292546142,-300.0,0.00027119,2]
[344137811,1733292546169,-11530.48371682,0.0002712,2]
[344137812,1733292555087,-371.34690088,0.0002712,2]
[344137813,1733292555245,-1090.13689861,0.00027215,2]
[344137814,1733292555273,-214.821039,0.00027315,2]
[344137815,1733292555298,-250.0,0.00027336,2]
[344137816,1733292555323,-3845.9239885,0.00027337,2]
[344137817,1733292555347,-1090.13689861,0.00027355,2]
[344137917,1733292632488,-315.7830074,0.00027783,2]
[344137919,1733292632497,-159.655214,0.00028425,2]
[344137921,1733292632507,-497.947434,0.00029222,2]
[344137924,1733292632518,-172.19257,0.00029222,2]
[344137925,1733292632531,-183.098344,0.00029348,2]
[344137927,1733292632540,-149.44519187,0.00029398,2]
[344138131,1733292638501,-44.81708713,0.00029398,2]
[344138133,1733292638513,-497.947434,0.00029588,2]
[344138135,1733292638524,-363.37896621,0.00029899,2]
[344138137,1733292638534,-363.3789662,0.00029936,2]
[344138139,1733292638543,-497.947434,0.00029953,2]
[344138141,1733292638552,-363.3789662,0.00029972,2]
[344138143,1733292638562,-969.7139602,0.00029999,2]
[344138145,1733292638571,-1391.34431378,0.00029999,2]
[344138147,1733292638580,-300.0,0.00029999,2]
[344138149,1733292638589,-300.0,0.00029999,2]
[344138151,1733292638599,-237.0,0.0003,2]
[344138153,1733292638608,-20000.0,0.0003,21]
[344138155,1733292638617,-500.140485,0.00030072,2]
[344138157,1733292638627,-546.37887701,0.00030073,5]
[344138159,1733292638636,-500.0,0.00030073,5]
[344138161,1733292638645,-521.46553577,0.00030073,5]
[344138163,1733292638654,-500.0,0.00030073,5]
[344138165,1733292638664,-160.59857122,0.00030073,5]
[344138167,1733292638673,-500.0,0.00030073,2]
[344138169,1733292638682,-160.09311835,0.00030073,2]
[344138171,1733292638692,-500.0,0.00030073,5]
[344138173,1733292638701,-620.30714093,0.00030073,5]
[344138175,1733292638710,-500.0,0.00030073,5]
[344138177,1733292638719,-500.0,0.00030099,2]
[344138179,1733292638728,-500.0,0.00030099,2]
[344138181,1733292638738,-500.0,0.00030099,2]
[344138183,1733292638747,-500.0,0.00030099,2]
[344138185,1733292638756,-500.0,0.00030099,2]
[344138187,1733292638765,-500.0,0.00030099,2]
[344138188,1733292638775,-500.0,0.00030099,2]
[344138191,1733292638785,-500.0,0.00030099,2]
[344138192,1733292638794,-500.0,0.00030099,2]
[344138194,1733292638804,-500.0,0.00030099,2]
[344138196,1733292638814,-500.0,0.00030099,2]
[344138198,1733292638823,-500.0,0.00030099,2]
[344138200,1733292638832,-500.0,0.00030099,2]
[344138202,1733292638841,-500.0,0.00030099,2]
[344138204,1733292638850,-500.0,0.00030099,2]
[344138206,1733292638860,-500.0,0.00030099,2]
[344138208,1733292638869,-500.0,0.00030099,2]
[344138209,1733292638878,-500.0,0.00030099,2]
[344138211,1733292638887,-500.0,0.00030099,2]
[344138213,1733292638897,-500.0,0.00030099,2]
[344138215,1733292638906,-500.0,0.00030099,2]
[344138217,1733292638915,-500.0,0.00030099,2]
[344138219,1733292638925,-500.0,0.00030099,2]
[344138221,1733292638934,-500.0,0.00030099,2]
[344138223,1733292638943,-500.0,0.00030099,2]
[344138225,1733292638952,-500.0,0.00030099,2]
[344138226,1733292638964,-500.0,0.00030099,2]
[344138228,1733292638973,-500.0,0.00030099,2]
[344138230,1733292638983,-500.0,0.00030099,2]
[344138232,1733292638992,-204.16580548,0.00030099,2]
[344138234,1733292639003,-500.0,0.00030099,2]
[344138236,1733292639013,-500.0,0.00030099,2]
[344138238,1733292639023,-500.0,0.00030099,2]
[344138240,1733292639035,-500.0,0.00030099,2]
[344138242,1733292639044,-500.0,0.00030099,2]
[344138244,1733292639056,-500.0,0.00030099,2]
[344138246,1733292639066,-500.0,0.00030099,2]
[344138247,1733292639078,-500.0,0.00030099,2]
[344138249,1733292639088,-500.0,0.00030099,2]
[344138251,1733292639098,-500.0,0.00030099,2]
[344138253,1733292639108,-500.0,0.00030099,2]
[344138255,1733292639118,-500.0,0.00030099,2]
[344138257,1733292639129,-500.0,0.00030099,2]
[344138259,1733292639139,-500.0,0.00030099,2]
[344138261,1733292639149,-500.0,0.00030099,2]
[344138262,1733292639159,-500.0,0.00030099,2]
[344138264,1733292639169,-500.0,0.00030099,2]
[344138266,1733292639180,-500.0,0.00030099,2]
[344138268,1733292639190,-500.0,0.00030099,2]
[344138270,1733292639200,-500.0,0.00030099,2]
[344138272,1733292639209,-500.0,0.00030099,2]
[344138274,1733292639219,-500.0,0.00030099,2]
[344138289,1733292639358,-500.0,0.00030099,2]
[344138290,1733292639368,-500.0,0.00030099,2]
[344138292,1733292639379,-500.0,0.00030099,2]
[344138294,1733292639389,-500.0,0.00030099,2]
[344138296,1733292639399,-500.0,0.00030099,2]
[344138298,1733292639409,-500.0,0.00030099,2]
[344138300,1733292639418,-500.0,0.00030099,2]
[344138302,1733292639428,-500.0,0.00030099,2]
[344138304,1733292639437,-500.0,0.00030099,2]
[344138306,1733292639447,-500.0,0.00030099,2]
[344138307,1733292639456,-500.0,0.00030099,2]
[344138309,1733292639466,-500.0,0.00030099,2]
[344138311,1733292639476,-500.0,0.00030099,2]
[344138313,1733292639486,-500.0,0.00030099,2]
[344138315,1733292639496,-500.0,0.00030099,2]
[344138317,1733292639506,-500.0,0.00030099,2]
[344138319,1733292639516,-500.0,0.00030099,2]
[344138320,1733292639528,-500.0,0.00030099,2]
[344138322,1733292639539,-500.0,0.00030099,2]
[344138324,1733292639549,-500.0,0.00030099,2]
[344138326,1733292639559,-800.0,0.00030099,3]
[344138328,1733292639568,-500.0,0.00030099,2]
[344138330,1733292639578,-1626.41,0.000301,2]
[344138332,1733292639588,-1719.182566,0.000301,2]
[344138334,1733292639598,-39859.0,0.000301,7]
[344138336,1733292639608,-150.0,0.000301,2]
[344138337,1733292639618,-5531.69134678,0.00030136,2]
[344138344,1733292639686,-2217.9519211,0.00030136,2]
[344138346,1733292639695,-505.79104698,0.00030136,7]
[344138348,1733292639706,-500.0,0.00030136,7]
[344138350,1733292639719,-500.0,0.00030136,7]
[344138352,1733292639732,-498.7594429,0.00030136,7]
[344138354,1733292639745,-500.0,0.00030136,7]
[344138356,1733292639755,-500.0,0.00030136,7]
[344138358,1733292639765,-500.0,0.00030136,7]
[344138360,1733292639780,-316.15891873,0.00030136,7]
[344138362,1733292639789,-500.0,0.00030136,7]
[344138363,1733292639799,-500.0,0.00030136,7]
[344138365,1733292639809,-500.0,0.00030136,7]
[344138367,1733292639818,-500.0,0.00030136,7]
[344138369,1733292639828,-500.0,0.00030136,7]
[344138371,1733292639837,-500.0,0.00030136,7]
[344138373,1733292639847,-500.0,0.00030136,7]
[344138374,1733292639856,-500.0,0.00030136,7]
[344138376,1733292639866,-500.0,0.00030136,7]
[344138378,1733292639875,-501.60530831,0.00030136,7]
[344138380,1733292639884,-195.2953862,0.00030136,7]
[344138382,1733292639894,-509.0218995,0.00030136,7]
[344138386,1733292639903,-500.0,0.00030136,7]
[344138387,1733292639913,-505.75309223,0.00030136,7]
[344138389,1733292639923,-500.0,0.00030136,7]
[344138391,1733292639932,-500.0,0.00030136,7]
[344138393,1733292639942,-500.0,0.00030136,7]
[344138395,1733292639951,-176.62,0.00030136,7]
[344138397,1733292639969,-500.0,0.00030136,7]
[344138399,1733292639979,-500.0,0.00030136,7]
[344138401,1733292639988,-500.0,0.00030136,7]
[344138403,1733292639998,-500.0,0.00030136,7]
[344138405,1733292640009,-500.0,0.00030136,7]
[344138407,1733292640020,-500.0,0.00030136,7]
[344138409,1733292640030,-500.0,0.00030136,7]
[344138411,1733292640040,-596.82062528,0.00030136,7]
[344138413,1733292640049,-500.0,0.00030136,7]
[344138415,1733292640059,-502.35366158,0.00030136,7]
[344138416,1733292640069,-628.34666764,0.00030136,7]
[344138418,1733292640079,-500.0,0.00030136,7]
[344138420,1733292640088,-500.0,0.00030136,7]
[344138422,1733292640098,-510.51951927,0.00030136,7]
[344138424,1733292640108,-250.36,0.00030136,7]
[344138426,1733292640117,-498.73471493,0.00030136,7]
[344138428,1733292640127,-500.0,0.00030136,7]
[344138430,1733292640136,-500.0,0.00030136,7]
[344138431,1733292640146,-500.0,0.00030136,7]
[344138433,1733292640155,-500.0,0.00030136,7]
[344138435,1733292640165,-500.0,0.00030136,7]
[344138437,1733292640174,-500.0,0.00030136,7]
[344138439,1733292640184,-500.0,0.00030136,7]
[344138441,1733292640194,-500.0,0.00030136,7]
[344138443,1733292640203,-500.0,0.00030136,7]
[344138445,1733292640213,-500.0,0.00030136,7]
[344138447,1733292640222,-500.0,0.00030136,7]
[344138449,1733292640231,-500.0,0.00030136,7]
[344138451,1733292640241,-506.78247308,0.00030136,7]
[344138453,1733292640250,-500.0,0.00030136,7]
[344138455,1733292640259,-500.0,0.00030136,7]
[344138457,1733292640270,-79.12532227,0.00030136,7]
[344138713,1733292643454,-420.87467773,0.00030136,7]
[344138715,1733292643464,-500.0,0.00030136,7]
[344138717,1733292643474,-500.0,0.00030136,7]
[344138719,1733292643483,-500.0,0.00030136,7]
[344138721,1733292643493,-500.0,0.00030136,7]
[344138723,1733292643502,-500.0,0.00030136,7]
[344138725,1733292643511,-459.14165077,0.00030136,7]
[344138727,1733292643520,-500.0,0.00030136,7]
[344138728,1733292643532,-340.26243048,0.00030136,7]
[344138945,1733293061024,172.931271,0.00013973,2]
[344138946,1733293066294,153.34,0.000303,31]
[344138947,1733293066384,153.34,0.000303,31]
[344138948,1733293066439,153.34,0.000303,31]
[344138949,1733293066491,153.34,0.000303,31]
[344138950,1733293066562,153.34,0.000303,31]
[344138960,1733293458388,377.65604497,0.00031,60]
[344138962,1733293625116,-418.1679079,0.00028659,2]
[344138963,1733293625139,-504.6136039,0.00028671,2]
[344138964,1733293625161,-169.990189,0.00028828,2]
[344138965,1733293625183,-4124.1773999,0.00028879,2]
[344138966,1733293625204,-347.7944967,0.00028948,2]
[344138967,1733293625224,-214.82104,0.00028973,2]
[344138968,1733293625246,-160.018975,0.00029222,2]
[344138969,1733293625266,-178.346839,0.00029222,2]
[344138970,1733293625287,-110.71618891,0.00029435,2]
[344138971,1733293627091,-39.28381109,0.00029435,2]
[344138972,1733293627113,-300.0,0.00029586,2]
[344138973,1733293627134,-400.0,0.00029586,2]
[344138974,1733293627154,-300.0,0.00029587,2]
[344138975,1733293627176,-160.018975,0.00029588,2]
[344138976,1733293627197,-178.346839,0.00029588,2]
[344138977,1733293627217,-440.79301442,0.000296,2]
[344138978,1733293629134,-1834.61720882,0.00028,2]
[344138979,1733293640143,-9898.55452126,0.00028,2]
[344138980,1733293640166,-484.56937922,0.000296,2]
[344138984,1733293654085,-222.80480296,0.00025,7]
[344138985,1733293672517,153.35,0.000303,31]
[344138986,1733293672575,153.35,0.000303,31]
[344138987,1733293672779,153.35,0.000303,31]
[344138988,1733293672843,153.35,0.000303,31]
[344138989,1733293672899,153.35,0.000303,31]
[344138990,1733293745206,-940.53925819,0.000249,7]
[344138991,1733293745226,-300.0,0.00024999,2]
[344138992,1733293745248,-300.0,0.00024999,2]
[344138993,1733293745269,-2796.95157148,0.00025,7]
[344138994,1733293745290,-4505.40563143,0.00025,2]
[344138995,1733293745311,-10933.77949879,0.00025,2]
[344138996,1733293745332,-60279.26515418,0.00025,2]
[344138997,1733293749093,-1069.99231768,0.00025,2]
[344138998,1733293749131,-337045.58839592,0.00025,2]
[344139009,1733293754748,171.597435,0.00013973,2]
[344139010,1733293763089,-1615.77194789,0.00025,2]
[344139011,1733293763111,-1422.7587679,0.00025906,2]
[344139012,1733293763132,-617.0653455,0.00026006,2]
[344139013,1733293763153,-420.0,0.00027082,2]
[344139593,1733293838843,-1422.75876788,0.00027215,2]
[344139596,1733293838853,-2919.76869716,0.00028,2]
[344139599,1733293838863,-300.0,0.00028399,2]
[344139601,1733293838872,-300.0,0.00028399,2]
[344139603,1733293838881,-342.12193114,0.000284,2]
[344139605,1733293838890,-37608.88038935,0.000284,2]
[344139778,1733293840565,-24.75608922,0.000284,2]
[344139781,1733293840589,-4322.88937915,0.000284,2]
[344139783,1733293840603,-25780.47414728,0.000284,2]
[344139785,1733293840613,-1422.75876788,0.00028523,2]
[344139787,1733293840623,-582.3590066,0.00028752,2]
[344139789,1733293840632,-862.9826223,0.00029,2]
[344139791,1733293840642,-1422.75876788,0.00029832,2]
[344139793,1733293840652,-160.018975,0.00029953,2]
[344139795,1733293840662,-178.346839,0.00029953,2]
[344139797,1733293840671,-500.0,0.00029979,2]
[344139799,1733293840682,-500.0,0.00029979,2]
[344139801,1733293840691,-500.0,0.00029979,2]
[344139804,1733293840701,-500.0,0.00029979,2]
[344139806,1733293840710,-500.0,0.00029979,2]
[344139807,1733293840720,-500.0,0.00029979,2]
[344139820,1733293840848,-570.41658055,0.00029979,2]
[344139822,1733293840859,-500.0,0.00029979,2]
[344139824,1733293840871,-7065.07392581,0.0002998,2]
[344139826,1733293840882,-379.0,0.0003,20]
[344139828,1733293840894,-376.0,0.0003,20]
[344139830,1733293840905,-376.0,0.0003,20]
[344139832,1733293840914,-376.0,0.0003,20]
[344139834,1733293840924,-207.0,0.0003,2]
[344139836,1733293840934,-247.50221091,0.00030036,2]
[344139838,1733293840943,-150.54940005,0.00030094,2]
[344139840,1733293840953,-1463.77,0.000301,2]
[344139842,1733293840963,-151.0,0.00030113,7]
[344139844,1733293840972,-242.0539622,0.00030135,2]
[344139846,1733293840982,-264.14914398,0.00030135,2]
[344139848,1733293840993,-500.0,0.00030135,2]
[344139849,1733293841003,-490.42137168,0.00030135,2]
[344139851,1733293841013,-3874.82163394,0.00030136,2]
[344139853,1733293841023,-159.73756952,0.00030136,7]
[344139855,1733293841035,-500.0,0.00030136,7]
[344139857,1733293841045,-518.77458799,0.00030136,7]
[344139858,1733293841054,-500.0,0.00030136,7]
[344139859,1733293841063,-1029.89,0.00030136,7]
[344139861,1733293841073,-1029.89,0.00030136,7]
[344139863,1733293841083,-511.27396635,0.00030136,7]
[344139864,1733293841092,-500.0,0.00030136,7]
[344139866,1733293841102,-500.0,0.00030136,7]
[344139867,1733293841112,-508.47432681,0.00030136,7]
[344139869,1733293841121,-503.20840408,0.00030136,7]
[344139870,1733293841131,-501.43178467,0.00030136,7]
[344139871,1733293841140,-500.0,0.00030136,7]
[344139872,1733293841150,-505.30208983,0.00030136,7]
[344139873,1733293841159,-500.0,0.00030136,7]
[344139874,1733293841169,-609.36472656,0.00030136,7]
[344139875,1733293841178,-504.93308815,0.00030136,7]
[344139876,1733293841188,-518.47004296,0.00030136,7]
[344139877,1733293841197,-500.0,0.00030136,7]
[344139878,1733293841207,-500.0,0.00030136,7]
[344139879,1733293841217,-500.0,0.00030136,7]
[344139880,1733293841227,-501.86858183,0.00030136,7]
[344139881,1733293841237,-500.0,0.00030136,7]
[344139882,1733293841247,-500.0,0.00030136,7]
[344139883,1733293841257,-502.72312186,0.00030136,7]
[344139884,1733293841266,-500.0,0.00030136,7]
[344139885,1733293841277,-502.94416555,0.00030136,7]
[344139886,1733293841289,-500.0,0.00030136,7]
[344139887,1733293841299,-500.0,0.00030136,7]
[344139888,1733293841308,-463.34284437,0.00030136,7]
[344139889,1733293841318,-505.07481684,0.00030136,7]
[344139890,1733293841327,-500.0,0.00030136,7]
[344139891,1733293841336,-586.64033646,0.00030136,7]
[344139892,1733293841346,-511.88159759,0.00030136,7]
[344139893,1733293841355,-500.0,0.00030136,7]
[344139894,1733293841364,-269.3232037,0.00030136,7]
[344139895,1733293841373,-500.0,0.00030136,7]
[344139896,1733293841382,-500.0,0.00030136,7]
[344139897,1733293841391,-500.0,0.00030136,7]
[344139898,1733293841401,-500.0,0.00030136,7]
[344139899,1733293841410,-241.24344555,0.00030136,7]
[344139900,1733293841425,-500.0,0.00030136,7]
[344139901,1733293841439,-500.0,0.00030136,7]
[344139902,1733293841449,-500.0,0.00030136,7]
[344139903,1733293841459,-574.99019199,0.00030136,7]
[344139904,1733293841468,-303.34308914,0.00030136,7]
[344139905,1733293841478,-151.0,0.00030136,7]
[344139906,1733293841488,-154.173998,0.00030136,7]
[344139907,1733293841498,-161.68123565,0.00030136,7]
[344139908,1733293841508,-508.68212851,0.00030136,7]
[344139909,1733293841520,-500.0,0.00030136,7]
[344139910,1733293841536,-615.67006271,0.00030136,7]
[344139911,1733293841546,-500.0,0.00030136,7]
[344139912,1733293841555,-500.0,0.00030136,7]
[344139913,1733293841565,-500.0,0.00030136,7]
[344139914,1733293841578,-500.0,0.00030136,7]
[344139915,1733293841588,-266.68112891,0.00030136,7]
[344139916,1733293841599,-500.0,0.00030136,7]
[344139917,1733293841612,-500.0,0.00030136,7]
[344139918,1733293841622,-507.19394001,0.00030136,7]
[344139919,1733293841632,-502.44537569,0.00030136,7]
[344139920,1733293841642,-500.0,0.00030136,7]
[344139921,1733293841651,-345.3047764,0.00030136,7]
[344139922,1733293841661,-500.0,0.00030136,7]
[344139923,1733293841671,-577.93265485,0.00030136,7]
[344139924,1733293841681,-500.0,0.00030136,7]
[344139925,1733293841691,-500.0,0.00030136,7]
[344139926,1733293841701,-500.0,0.00030136,7]
[344139927,1733293841711,-466.10597023,0.00030136,7]
[344139928,1733293841720,-505.00688673,0.00030136,7]
[344139929,1733293841730,-500.0,0.00030136,7]
[344139930,1733293841740,-500.0,0.00030136,7]
[344139931,1733293841750,-500.0,0.00030136,7]
[344139932,1733293841760,-500.0,0.00030136,7]
[344139933,1733293841770,-500.0,0.00030136,7]
[344139934,1733293841780,-500.0,0.00030136,7]
[344139935,1733293841791,-500.0,0.00030136,7]
[344139936,1733293841801,-501.80525261,0.00030136,7]
[344139937,1733293841811,-500.0,0.00030136,7]
[344139938,1733293841821,-500.0,0.00030136,7]
[344139939,1733293841831,-502.33450305,0.00030136,7]
[344139940,1733293841841,-500.0,0.00030136,7]
[344139941,1733293841851,-500.0,0.00030136,7]
[344139942,1733293841861,-500.0,0.00030136,7]
[344139943,1733293841870,-576.47096882,0.00030136,7]
[344139944,1733293841880,-151.685753,0.00030136,2]
[344139945,1733293841890,-151.0,0.00030136,7]
[344139946,1733293841899,-589.33515384,0.00030136,7]
[344139947,1733293841909,-151.0,0.00030136,7]
[344139948,1733293841919,-505.66599136,0.00030136,7]
[344139949,1733293841928,-500.0,0.00030136,7]
[344139950,1733293841937,-500.0,0.00030136,7]
[344139951,1733293841946,-511.94574703,0.00030136,7]
[344139952,1733293841955,-500.0,0.00030136,7]
[344139953,1733293841965,-500.0,0.00030136,7]
[344139954,1733293841974,-277.42463142,0.00030136,7]
[344139969,1733293844037,-229.23467104,0.00030136,7]
[344139970,1733293844049,-500.0,0.00030136,7]
[344139971,1733293844059,-500.0,0.00030136,7]
[344139972,1733293844069,-543.99896345,0.00030136,7]
[344139973,1733293844081,-592.07583158,0.00030136,7]
[344139974,1733293844095,-500.0,0.00030136,7]
[344139975,1733293844104,-500.0,0.00030136,7]
[344139976,1733293844114,-500.0,0.00030136,7]
[344139977,1733293844124,-500.0,0.00030136,7]
[344139978,1733293844134,-500.0,0.00030136,7]
[344139979,1733293844144,-500.0,0.00030136,7]
[344139980,1733293844154,-500.0,0.00030136,7]
[344139981,1733293844164,-255.88282855,0.00030136,7]
[344139982,1733293844174,-500.0,0.00030136,7]
[344139983,1733293844184,-531.24,0.00030136,7]
[344139984,1733293844201,-500.0,0.00030136,7]
[344139985,1733293844214,-500.0,0.00030136,7]
[344139986,1733293844227,-500.0,0.00030136,7]
[344139987,1733293844240,-500.0,0.00030136,7]
[344139988,1733293844253,-504.19441541,0.00030136,7]
[344139989,1733293844269,-500.0,0.00030136,7]
[344139990,1733293844292,-163.11136687,0.00030136,7]
[344139991,1733293844311,-274.95249854,0.00030136,7]
[344139992,1733293844322,-500.0,0.00030136,7]
[344139993,1733293844333,-500.0,0.00030136,7]
[344139994,1733293844347,-504.97888179,0.00030136,7]
[344139995,1733293844358,-500.0,0.00030136,7]
[344139996,1733293844370,-505.19775942,0.00030136,7]
[344139997,1733293844381,-500.0,0.00030136,7]
[344139998,1733293844393,-500.0,0.00030136,7]
[344139999,1733293844405,-500.0,0.00030136,7]
[344140000,1733293844416,-500.0,0.00030136,7]
[344140001,1733293844427,-513.05414268,0.00030136,7]
[344140002,1733293844439,-500.0,0.00030136,7]
[344140003,1733293844451,-500.0,0.00030136,7]
[344140004,1733293844463,-500.0,0.00030136,7]
[344140005,1733293844475,-500.0,0.00030136,7]
[344140006,1733293844486,-506.43265231,0.00030136,7]